fUSD/lending_fUSD_20250513
["ID","MTS","AMOUNT","RATE_DAILY","PERIOD"]
[360910556,1747140629013,-151.0,0.00011,2]
[360910557,1747140629030,-400.0,0.00011,2]
[360910558,1747140629049,-1942.7,0.00011,2]
[360910559,1747140629063,-1797.94,0.00011,2]
[360910560,1747140629074,-400.0,0.00011,2]
[360910561,1747140629090,-400.0,0.00011,2]
[360910562,1747140629101,-4535.45,0.00011,2]
[360910563,1747140629112,-400.0,0.00011,2]
[360910564,1747140629123,-400.0,0.00011,2]
[360910565,1747140629144,-400.0,0.00011,2]
[360910566,1747140629167,-1529.09,0.00011,2]
[360910567,1747140629191,-400.0,0.00011,2]
[360910568,1747140629206,-400.0,0.00011,2]
[360910569,1747140629244,-400.0,0.00011,2]
[360910570,1747140629319,-184.40037269,0.00011,2]
[360910571,1747140629340,-400.0,0.00011,2]
[360910572,1747140629352,-2146.1,0.00011,2]
[360910573,1747140629364,-400.0,0.00011,2]
[360910574,1747140629379,-1118.05,0.00011,2]
[360910575,1747140629394,-1400.59,0.00011,2]
[360910576,1747140629406,-400.0,0.00011,2]
[360910577,1747140629417,-420.72,0.00011,2]
[360910578,1747140629442,-13131.28197904,0.00011,2]
[360910579,1747140629778,-151.0,0.00010999,2]
[360910580,1747140629787,-38403.94962477,0.00011,2]
[360910581,1747140629798,-312860.18825046,0.00011,2]
[360910582,1747140630176,-400.0,0.00010999,2]
[360910583,1747140630185,-389570.0875,0.00011,2]
[360910584,1747140630599,-389970.0875,0.00011,2]
[360910591,1747140631780,-546.02,0.00010998,2]
[360910592,1747140631789,-154.788367,0.00010999,2]
[360910593,1747140631799,-400.0,0.00010999,2]
[360910594,1747140631808,-7238.1895998,0.00011,2]
[360910595,1747140632000,-640.69,0.00010999,2]
[360910596,1747140632010,-543.88,0.00010999,2]
[360910597,1747140632020,-3570.06229878,0.00011,2]
[360910602,1747140637727,-400.0,0.00010998,2]
[360910603,1747140637737,-541.9,0.00010998,2]
[360910604,1747140637746,-920.76844427,0.00010998,2]
[360910605,1747140637784,-29.93155573,0.00010998,2]
[360910606,1747140637793,-400.0,0.00010999,2]
[360910607,1747140637803,-72.98844427,0.00010999,2]
[360910608,1747140637813,-2077.1541776,0.00010999,2]
[360910609,1747140637892,-1119.01234087,0.00010999,2]
[360910610,1747140637907,-1468.87302269,0.00010999,2]
[360910611,1747140637920,-276.21201457,0.00010999,2]
[360910612,1747140637929,-400.0,0.00010999,2]
[360910613,1747140637939,-239.82913319,0.00010999,2]
[360910614,1747140637948,-135.7073568,0.00010999,2]
[360910615,1747140637960,-313.6526432,0.00010999,2]
[360910616,1747140637969,-326.70955969,0.00010999,2]
[360910617,1747140637980,-123.29044031,0.00010999,2]
[360910618,1747140637990,-4928.20955549,0.00011,2]
[360910619,1747140638003,-1144.44820268,0.00011,2]
[360910627,1747140639880,-614.10999216,0.00010998,2]
[360910628,1747140639891,-378.34000001,0.00010998,2]
[360910629,1747140639904,-1108.46000783,0.00010998,2]
[360910630,1747140639913,-491.71,0.00010999,2]
[360910631,1747140639922,-400.0,0.00010999,2]
[360910632,1747140639931,-462.68649953,0.00011,2]
[360910633,1747140642396,-0.00385318,0.00011,2]
[360910637,1747140642774,-20117.12551184,0.00011,2]
[360910646,1747140642853,-2579.99999985,0.00011,2]
[360910654,1747140642918,-947.72946,0.00011,2]
[360910671,1747140643453,-565.62226,0.00011,2]
[360910672,1747140643464,-888.28561574,0.00011,2]
[360910703,1747140647810,-400.0,0.00010998,2]
[360910704,1747140647819,-400.0,0.00010998,2]
[360910705,1747140647828,-1255.6,0.00010999,2]
[360910706,1747140647837,-9018.52,0.00010999,2]
[360910707,1747140647846,-643.09,0.00010999,2]
[360910708,1747140647858,-966.72938825,0.00011,2]
[360910709,1747140647869,-5148.5000005,0.00011,2]
[360910710,1747140673558,166.96,7.827e-05,2]
[360910711,1747140751640,200.0,9.728e-05,2]
[360910712,1747140765991,-890.66,0.00010472,2]
[360910713,1747140812736,22391.11231685,9.728e-05,2]
[360910714,1747140862752,609.32,0.00028,120]
[360910715,1747140890155,-500.0,9.727e-05,2]
[360910716,1747140890188,-500.0,9.727e-05,2]
[360910717,1747140890218,-500.0,9.727e-05,2]
[360910718,1747140890248,-500.0,9.727e-05,2]
[360910719,1747140890277,-500.0,9.727e-05,2]
[360910720,1747140890314,-500.0,9.727e-05,2]
[360910721,1747140890347,-500.0,9.727e-05,2]
[360910722,1747140890380,-500.0,9.727e-05,2]
[360910723,1747140890413,-500.0,9.727e-05,2]
[360910724,1747140890451,-500.0,9.727e-05,2]
[360910725,1747140890483,-645.75622163,9.727e-05,2]
[360910726,1747140890514,-500.0,9.727e-05,2]
[360910727,1747140890546,-500.0,9.727e-05,2]
[360910728,1747140890576,-1508.88768315,9.728e-05,2]
[360910729,1747140890599,-165.61,0.00010036,2]
[360910730,1747140890623,-4590.280802,0.00010472,2]
[360910731,1747140890648,-4995.48,0.00010525,2]
[360910732,1747140890672,-4995.48,0.00010528,2]
[360910733,1747140890700,-4995.48,0.00010531,2]
[360910734,1747140890724,-4995.48,0.00010534,2]
[360910735,1747140890748,-4995.48,0.00010536,2]
[360910736,1747140890771,-4995.48,0.00010539,2]
[360910737,1747140890795,-4995.48,0.00010542,2]
[360910738,1747140890820,-4995.48,0.00010545,2]
[360910739,1747140890844,-4995.48,0.00010547,2]
[360910740,1747140890868,-150.0,0.00010549,2]
[360910741,1747140890892,-4995.48,0.0001055,2]
[360910742,1747140890916,-4995.48,0.00010553,2]
[360910743,1747140890939,-4995.48,0.00010556,2]
[360910744,1747140890965,-4995.48,0.00010558,2]
[360910745,1747140890992,-4995.48,0.00010561,2]
[360910746,1747140891016,-4995.48,0.00010564,2]
[360910747,1747140891041,-4995.48,0.00010567,2]
[360910748,1747140891067,-4995.48,0.0001057,2]
[360910749,1747140891093,-4995.48,0.00010572,2]
[360910750,1747140891117,-4995.48,0.00010575,2]
[360910751,1747140891143,-4995.48,0.00010578,2]
[360910752,1747140891167,-250.0,0.000107,2]
[360910753,1747140891191,-238.85622132,0.000108,2]
[360910754,1747140891215,-165.61,0.00010864,2]
[360910755,1747140891240,-569.25695846,0.00010899,2]
[360910756,1747140891510,-218.54004114,0.00010899,2]
[360910757,1747140891536,-569.25695844,0.00010899,2]
[360910758,1747140891563,-569.25695844,0.000109,2]
[360910759,1747140891586,-569.25695844,0.000109,2]
[360910760,1747140891613,-3136.22888862,0.000109,2]
[360910761,1747140891637,-586.5544,0.000109,2]
[360910762,1747140891660,-246.26893393,0.000109,2]
[360910763,1747140891684,-725.94337146,0.000109,2]
[360910764,1747140891707,-4143.21278244,0.000109,2]
[360910765,1747140891730,-5032.70651698,0.000109,2]
[360910766,1747140891754,-2367.24366545,0.000109,2]
[360910767,1747140891777,-1000.0,0.00010915,2]
[360910768,1747140891800,-1002.09057801,0.00010916,2]
[360910769,1747140891824,-3906.0,0.00010959,2]
[360910770,1747140891847,-6812.0,0.00010959,2]
[360910771,1747140891870,-500.0,0.00010973,2]
[360910772,1747140891893,-400.0,0.00010998,2]
[360910773,1747140891917,-400.0,0.00010998,2]
[360910774,1747140891940,-400.0,0.00010998,2]
[360910775,1747140891963,-2083.3,0.00010998,2]
[360910776,1747140891989,-400.0,0.00010998,2]
[360910777,1747140892012,-500.92,0.00010998,2]
[360910778,1747140892035,-400.0,0.00010998,2]
[360910779,1747140892062,-468.01,0.00010998,2]
[360910780,1747140892085,-400.0,0.00010998,2]
[360910781,1747140892109,-400.0,0.00010998,2]
[360910782,1747140892132,-400.0,0.00010998,2]
[360910783,1747140892157,-400.0,0.00010998,2]
[360910784,1747140892181,-400.0,0.00010998,2]
[360910785,1747140892206,-441.09,0.00010998,2]
[360910786,1747140892230,-400.0,0.00010998,2]
[360910787,1747140892255,-400.0,0.00010998,2]
[360910788,1747140892279,-400.0,0.00010998,2]
[360910789,1747140892302,-400.0,0.00010998,2]
[360910790,1747140892328,-400.0,0.00010998,2]
[360910791,1747140892351,-405.37565342,0.00010998,2]
[360910792,1747140892374,-400.0,0.00010998,2]
[360910793,1747140892398,-408.09113586,0.00010998,2]
[360910794,1747140892421,-400.0,0.00010998,2]
[360910795,1747140892446,-4056.84,0.00010998,2]
[360910796,1747140892469,-400.0,0.00010998,2]
[360910797,1747140892492,-400.0,0.00010998,2]
[360910798,1747140892516,-400.0,0.00010998,2]
[360910799,1747140892539,-1347.26,0.00010998,2]
[360910800,1747140892564,-400.0,0.00010998,2]
[360910801,1747140892587,-400.0,0.00010998,2]
[360910802,1747140892612,-864.4,0.00010998,2]
[360910803,1747140892638,-400.0,0.00010998,2]
[360910804,1747140892662,-509.79235232,0.00010998,2]
[360910805,1747140892685,-400.0,0.00010998,2]
[360910806,1747140892709,-400.0,0.00010998,2]
[360910807,1747140892735,-500.0,0.00010998,2]
[360910808,1747140892758,-949.9,0.00010998,2]
[360910809,1747140892792,-400.0,0.00010998,2]
[360910810,1747140892820,-400.0,0.00010998,2]
[360910811,1747140892845,-450.0,0.00010998,2]
[360910812,1747140892869,-400.0,0.00010998,2]
[360910813,1747140892893,-400.0,0.00010998,2]
[360910814,1747140892919,-737.1,0.00010998,2]
[360910815,1747140892943,-400.0,0.00010998,2]
[360910816,1747140892967,-400.0,0.00010998,2]
[360910817,1747140892993,-1000.0,0.00010998,2]
[360910818,1747140893016,-400.18,0.00010998,2]
[360910819,1747140893040,-419.13,0.00010998,2]
[360910820,1747140893064,-443.49,0.00010998,2]
[360910821,1747140893088,-1719.54,0.00010998,2]
[360910822,1747140893112,-400.0,0.00010998,2]
[360910823,1747140893136,-400.0,0.00010998,2]
[360910824,1747140893161,-1998.85,0.00010998,2]
[360910825,1747140893186,-972.09,0.00010998,2]
[360910826,1747140893211,-400.0,0.00010998,2]
[360910827,1747140893236,-529.68,0.00010998,2]
[360910828,1747140893263,-1031.21,0.00010998,2]
[360910829,1747140893295,-677.92,0.00010998,2]
[360910830,1747140893322,-400.0,0.00010998,2]
[360910831,1747140893345,-400.0,0.00010998,2]
[360910832,1747140893371,-400.0,0.00010998,2]
[360910833,1747140893397,-957.64,0.00010998,2]
[360910834,1747140893423,-400.0,0.00010998,2]
[360910835,1747140893447,-400.0,0.00010998,2]
[360910836,1747140893475,-400.0,0.00010998,2]
[360910837,1747140893500,-400.0,0.00010998,2]
[360910838,1747140893525,-400.0,0.00010998,2]
[360910839,1747140893549,-400.0,0.00010998,2]
[360910840,1747140893573,-400.0,0.00010998,2]
[360910841,1747140893598,-414.56,0.00010998,2]
[360910842,1747140893624,-400.0,0.00010998,2]
[360910843,1747140893649,-949.44,0.00010998,2]
[360910844,1747140893675,-590.62,0.00010998,2]
[360910845,1747140893703,-400.0,0.00010998,2]
[360910846,1747140893730,-622.94,0.00010998,2]
[360910847,1747140893755,-400.0,0.00010998,2]
[360910848,1747140893779,-400.0,0.00010998,2]
[360910849,1747140893807,-400.0,0.00010998,2]
[360910850,1747140893834,-1417.49,0.00010998,2]
[360910851,1747140893859,-400.0,0.00010998,2]
[360910852,1747140893884,-400.0,0.00010998,2]
[360910853,1747140893911,-400.0,0.00010998,2]
[360910854,1747140893937,-772.86,0.00010998,2]
[360910855,1747140893961,-400.0,0.00010998,2]
[360910856,1747140894196,-400.0,0.00010998,2]
[360910857,1747140894225,-400.0,0.00010998,2]
[360910858,1747140894250,-400.0,0.00010998,2]
[360910859,1747140894274,-505.34,0.00010998,2]
[360910860,1747140894298,-409.98,0.00010998,2]
[360910861,1747140894324,-914.58,0.00010998,2]
[360910862,1747140894348,-400.0,0.00010998,2]
[360910863,1747140894371,-425.05,0.00010998,2]
[360910864,1747140894395,-616.24,0.00010998,2]
[360910865,1747140894418,-1394.25,0.00010998,2]
[360910866,1747140894442,-1559.62,0.00010998,2]
[360910867,1747140894467,-675.47,0.00010998,2]
[360910868,1747140894491,-265.52325826,0.00010998,2]
[360910869,1747140894517,-425.22,0.00010998,2]
[360910870,1747140894543,-493.15,0.00010998,2]
[360910871,1747140894569,-400.0,0.00010998,2]
[360910872,1747140894595,-98396.29,0.00010998,2]
[360910873,1747140894619,-1175.72,0.00010998,2]
[360910874,1747140894642,-400.0,0.00010998,2]
[360910875,1747140894666,-400.0,0.00010998,2]
[360910876,1747140894690,-660.01,0.00010998,2]
[360910877,1747140894715,-858.06,0.00010998,2]
[360910878,1747140894738,-400.0,0.00010998,2]
[360910879,1747140894762,-400.0,0.00010998,2]
[360910880,1747140894786,-500.0,0.00010998,2]
[360910881,1747140894811,-500.0,0.00010998,2]
[360910882,1747140894835,-400.0,0.00010998,2]
[360910883,1747140894859,-400.0,0.00010998,2]
[360910884,1747140894882,-400.0,0.00010998,2]
[360910885,1747140894906,-523.27,0.00010998,2]
[360910886,1747140894929,-400.0,0.00010998,2]
[360910887,1747140894954,-911.09,0.00010998,2]
[360910888,1747140894977,-1071.46,0.00010998,2]
[360910889,1747140895006,-400.0,0.00010998,2]
[360910890,1747140895031,-400.0,0.00010998,2]
[360910891,1747140895054,-400.0,0.00010998,2]
[360910892,1747140895080,-400.0,0.00010998,2]
[360910893,1747140895103,-400.0,0.00010998,2]
[360910894,1747140895126,-400.0,0.00010998,2]
[360910895,1747140895149,-400.0,0.00010998,2]
[360910896,1747140895173,-2882.72,0.00010998,2]
[360910897,1747140895196,-400.0,0.00010998,2]
[360910898,1747140895220,-400.0,0.00010998,2]
[360910899,1747140895245,-1244.67,0.00010998,2]
[360910900,1747140895269,-400.0,0.00010998,2]
[360910901,1747140895292,-400.0,0.00010998,2]
[360910902,1747140895318,-494.9,0.00010998,2]
[360910903,1747140895340,-400.0,0.00010999,2]
[360910904,1747140895366,-400.0,0.00010999,2]
[360910905,1747140895388,-391.17216632,0.00010999,2]
[360910906,1747140895413,-400.0,0.00010999,2]
[360910907,1747140895438,-532.73,0.00010999,2]
[360910908,1747140895462,-287.67657462,0.00010999,2]
[360910909,1747140895486,-400.0,0.00010999,2]
[360910910,1747140895512,-400.0,0.00010999,2]
[360910911,1747140895537,-400.0,0.00010999,2]
[360910912,1747140895563,-1303.72,0.00010999,2]
[360910913,1747140895587,-1196.62,0.00010999,2]
[360910914,1747140895612,-400.0,0.00010999,2]
[360910915,1747140895636,-466.62,0.00010999,2]
[360910916,1747140895661,-400.0,0.00010999,2]
[360910917,1747140895684,-400.0,0.00010999,2]
[360910918,1747140895707,-400.0,0.00010999,2]
[360910919,1747140895731,-400.0,0.00010999,2]
[360910920,1747140895755,-3123.76,0.00010999,2]
[360910921,1747140895778,-455.36,0.00010999,2]
[360910922,1747140895802,-400.0,0.00010999,2]
[360910923,1747140895826,-2167.39,0.00010999,2]
[360910924,1747140895849,-511.86950118,0.00010999,2]
[360910925,1747140895873,-400.0,0.00010999,2]
[360910926,1747140895898,-400.0,0.00010999,2]
[360910927,1747140895921,-4050.85,0.00010999,2]
[360910928,1747140895944,-400.0,0.00010999,2]
[360910929,1747140895967,-400.0,0.00010999,2]
[360910930,1747140895993,-531.92801661,0.00010999,2]
[360910931,1747140896017,-382.5345181,0.00010999,2]
[360910932,1747140896041,-503.98,0.00010999,2]
[360910933,1747140896065,-446.97,0.00010999,2]
[360910934,1747140896088,-151.0,0.00010999,2]
[360910935,1747140896112,-400.0,0.00010999,2]
[360910936,1747140896137,-1975.26,0.00010999,2]
[360910937,1747140896162,-400.0,0.00010999,2]
[360910938,1747140896187,-400.0,0.00010999,2]
[360910939,1747140896211,-400.0,0.00010999,2]
[360910940,1747140896235,-400.0,0.00010999,2]
[360910941,1747140896259,-400.0,0.00010999,2]
[360910942,1747140896283,-400.0,0.00010999,2]
[360910943,1747140896307,-6816.03,0.00010999,2]
[360910944,1747140896335,-400.0,0.00010999,2]
[360910945,1747140896359,-1531.37,0.00010999,2]
[360910946,1747140896384,-397.50837789,0.00010999,2]
[360910947,1747140896408,-595.75,0.00010999,2]
[360910948,1747140896433,-900.54,0.00010999,2]
[360910949,1747140896459,-400.0,0.00010999,2]
[360910950,1747140896483,-1000.0,0.00010999,2]
[360910951,1747140896507,-400.0,0.00010999,2]
[360910952,1747140896531,-400.0,0.00010999,2]
[360910953,1747140896555,-871.84,0.00010999,2]
[360910954,1747140896580,-400.0,0.00010999,2]
[360910955,1747140896606,-2971.797982,0.00010999,2]
[360910956,1747140896629,-400.0,0.00010999,2]
[360910957,1747140896653,-802.35,0.00010999,2]
[360910958,1747140896676,-400.0,0.00010999,2]
[360910959,1747140896700,-1021.71,0.00010999,2]
[360910960,1747140896723,-400.0,0.00010999,2]
[360910961,1747140896747,-2971.797982,0.00010999,2]
[360910962,1747140896771,-400.0,0.00010999,2]
[360910963,1747140896794,-400.0,0.00010999,2]
[360910964,1747140896819,-447.4,0.00010999,2]
[360910965,1747140896842,-400.0,0.00010999,2]
[360910966,1747140896865,-400.0,0.00010999,2]
[360910967,1747140896888,-400.0,0.00010999,2]
[360910968,1747140896912,-400.0,0.00010999,2]
[360910969,1747140896936,-1718.59,0.00010999,2]
[360910970,1747140896960,-400.0,0.00010999,2]
[360910971,1747140896985,-1426.99,0.00010999,2]
[360910972,1747140897191,-400.0,0.00010999,2]
[360910973,1747140897217,-1662.76,0.00010999,2]
[360910974,1747140897240,-967.2,0.00010999,2]
[360910975,1747140897263,-400.0,0.00010999,2]
[360910976,1747140897286,-569.47,0.00010999,2]
[360910977,1747140897309,-595.87,0.00010999,2]
[360910978,1747140897334,-806.97,0.00010999,2]
[360910979,1747140897358,-400.0,0.00010999,2]
[360910980,1747140897382,-777.53,0.00010999,2]
[360910981,1747140897406,-400.0,0.00010999,2]
[360910982,1747140897429,-400.0,0.00010999,2]
[360910983,1747140897452,-758.38,0.00010999,2]
[360910984,1747140897476,-487.44,0.00010999,2]
[360910985,1747140897500,-400.0,0.00010999,2]
[360910986,1747140897525,-400.0,0.00010999,2]
[360910987,1747140897549,-400.0,0.00010999,2]
[360910988,1747140897573,-562.62,0.00010999,2]
[360910989,1747140897597,-400.0,0.00010999,2]
[360910990,1747140897621,-201.5860984,0.00010999,2]
[360910991,1747140897644,-400.0,0.00010999,2]
[360910992,1747140897667,-786.59,0.00010999,2]
[360910993,1747140897690,-400.0,0.00010999,2]
[360910994,1747140897713,-500.48,0.00010999,2]
[360910995,1747140897736,-400.0,0.00010999,2]
[360910996,1747140897760,-655.89,0.00010999,2]
[360910997,1747140897783,-507.85,0.00010999,2]
[360910998,1747140897806,-532.99,0.00010999,2]
[360910999,1747140897831,-400.0,0.00010999,2]
[360911000,1747140897855,-649.32,0.00010999,2]
[360911001,1747140897878,-1612.44,0.00010999,2]
[360911002,1747140897901,-400.0,0.00010999,2]
[360911003,1747140897924,-400.0,0.00010999,2]
[360911004,1747140897948,-400.0,0.00010999,2]
[360911005,1747140897972,-549.77,0.00010999,2]
[360911006,1747140897998,-500.0,0.00010999,2]
[360911007,1747140898022,-934.54,0.00010999,2]
[360911008,1747140898046,-500.0,0.00010999,2]
[360911009,1747140898070,-400.0,0.00010999,2]
[360911010,1747140898094,-400.0,0.00010999,2]
[360911011,1747140898117,-400.0,0.00010999,2]
[360911012,1747140898141,-400.0,0.00010999,2]
[360911013,1747140898165,-400.0,0.00010999,2]
[360911014,1747140898189,-2228.62,0.00010999,2]
[360911015,1747140898212,-400.0,0.00010999,2]
[360911016,1747140898237,-757.75,0.00010999,2]
[360911017,1747140898262,-664.18,0.00010999,2]
[360911018,1747140898288,-1289.35,0.00010999,2]
[360911019,1747140898315,-1276.92,0.00010999,2]
[360911020,1747140898340,-472.61,0.00010999,2]
[360911021,1747140898365,-1511.1,0.00010999,2]
[360911022,1747140898389,-4081.06,0.00010999,2]
[360911023,1747140898415,-400.0,0.00010999,2]
[360911024,1747140898439,-400.0,0.00010999,2]
[360911025,1747140898464,-462.48,0.00010999,2]
[360911026,1747140898489,-400.0,0.00010999,2]
[360911027,1747140898513,-1188.19,0.00010999,2]
[360911028,1747140898537,-209.42053325,0.00010999,2]
[360911029,1747140898564,-435.84,0.00010999,2]
[360911030,1747140898589,-461.04,0.00010999,2]
[360911031,1747140898615,-400.0,0.00010999,2]
[360911032,1747140898640,-400.0,0.00010999,2]
[360911033,1747140898666,-400.0,0.00010999,2]
[360911034,1747140898690,-400.0,0.00010999,2]
[360911035,1747140898713,-400.0,0.00010999,2]
[360911036,1747140898737,-400.0,0.00010999,2]
[360911037,1747140898762,-400.0,0.00010999,2]
[360911038,1747140898786,-616.31,0.00010999,2]
[360911039,1747140898809,-2963.84,0.00010999,2]
[360911040,1747140898837,-1196.28,0.00010999,2]
[360911041,1747140898860,-503.03949981,0.00010999,2]
[360911042,1747140898884,-581.7,0.00010999,2]
[360911043,1747140898908,-400.0,0.00010999,2]
[360911044,1747140898931,-400.0,0.00010999,2]
[360911045,1747140898955,-400.0,0.00010999,2]
[360911046,1747140898979,-496.72,0.00010999,2]
[360911047,1747140899005,-4346.48,0.00010999,2]
[360911048,1747140899029,-400.0,0.00010999,2]
[360911049,1747140899052,-525.95,0.00010999,2]
[360911050,1747140899078,-1555.81,0.00010999,2]
[360911051,1747140899102,-1118.87,0.00010999,2]
[360911052,1747140899125,-400.0,0.00010999,2]
[360911053,1747140899148,-3176.75,0.00010999,2]
[360911054,1747140899171,-248.483397,0.00010999,2]
[360911055,1747140899193,-161.214143,0.00010999,2]
[360911056,1747140899216,-400.0,0.00010999,2]
[360911057,1747140899240,-2056.68,0.00010999,2]
[360911058,1747140899264,-400.0,0.00010999,2]
[360911059,1747140899287,-693.02,0.00010999,2]
[360911060,1747140899311,-509.43,0.00010999,2]
[360911061,1747140899336,-231.1415474,0.00010999,2]
[360911062,1747140899361,-400.0,0.00010999,2]
[360911063,1747140899384,-400.0,0.00010999,2]
[360911064,1747140899409,-5445.481016,0.00010999,2]
[360911065,1747140899434,-589.443693,0.00010999,2]
[360911066,1747140899459,-2781.66,0.00010999,2]
[360911067,1747140899484,-1167.15,0.00010999,2]
[360911068,1747140899510,-22583.4,0.00010999,2]
[360911069,1747140899536,-401.62588453,0.00010999,2]
[360911070,1747140899566,-554.39,0.00010999,2]
[360911071,1747140899591,-400.0,0.00010999,2]
[360911072,1747140899617,-414.57029416,0.00010999,2]
[360911073,1747140899641,-521.9,0.00010999,2]
[360911074,1747140899663,-400.0,0.00010999,2]
[360911075,1747140899687,-500.0,0.00010999,2]
[360911076,1747140899712,-500.0,0.00010999,2]
[360911077,1747140899736,-400.0,0.00010999,2]
[360911078,1747140899759,-530.99515065,0.00010999,2]
[360911079,1747140899783,-498.63411174,0.00010999,2]
[360911080,1747140899806,-400.0,0.00010999,2]
[360911081,1747140899831,-462.1,0.00010999,2]
[360911082,1747140899854,-804.95,0.00010999,2]
[360911083,1747140899879,-741.95,0.00010999,2]
[360911084,1747140899904,-400.0,0.00010999,2]
[360911085,1747140900109,-400.0,0.00010999,2]
[360911086,1747140900135,-439.62,0.00010999,2]
[360911087,1747140900161,-940.065376,0.00010999,2]
[360911088,1747140900187,-4629.07,0.00010999,2]
[360911089,1747140900213,-1546.98,0.00010999,2]
[360911090,1747140900239,-1390.44,0.00010999,2]
[360911091,1747140900265,-494.05,0.00010999,2]
[360911092,1747140900290,-1263.61,0.00010999,2]
[360911093,1747140900314,-560.52,0.00010999,2]
[360911094,1747140900339,-400.0,0.00010999,2]
[360911095,1747140900365,-400.0,0.00010999,2]
[360911096,1747140900391,-400.0,0.00010999,2]
[360911097,1747140900416,-400.0,0.00010999,2]
[360911098,1747140900442,-599.06,0.00010999,2]
[360911099,1747140900467,-614.0,0.00010999,2]
[360911100,1747140900492,-300.0,0.00010999,2]
[360911101,1747140900518,-222.08274683,0.00011,2]
[360911102,1747140900546,-2422.08493922,0.00011,2]
[360911103,1747140900571,-95419.83861052,0.00011,2]
[360911104,1747140901281,-649.2,0.00010998,2]
[360911105,1747140901305,-599304.3125,0.00011,2]
[360911106,1747140902354,-709.19457916,9.727e-05,2]
[360911107,1747140902385,-709.19457916,9.727e-05,2]
[360911108,1747140902415,-709.19457916,9.727e-05,2]
[360911109,1747140902447,-709.19457916,9.727e-05,2]
[360911110,1747140902478,-709.19457916,9.727e-05,2]
[360911111,1747140902509,-709.19457916,9.727e-05,2]
[360911112,1747140902539,-709.19457916,9.727e-05,2]
[360911113,1747140902571,-709.19457916,9.727e-05,2]
[360911114,1747140902602,-709.19457916,9.727e-05,2]
[360911115,1747140902632,-709.19457916,9.727e-05,2]
[360911116,1747140902661,-709.19457916,9.727e-05,2]
[360911117,1747140902690,-709.19457916,9.727e-05,2]
[360911118,1747140902722,-709.19457916,9.727e-05,2]
[360911119,1747140902750,-709.19457916,9.727e-05,2]
[360911120,1747140902780,-709.19457916,9.727e-05,2]
[360911121,1747140902809,-709.19457916,9.727e-05,2]
[360911122,1747140902841,-709.19457916,9.727e-05,2]
[360911123,1747140902870,-709.19457916,9.727e-05,2]
[360911124,1747140902905,-709.19457916,9.727e-05,2]
[360911125,1747140902936,-709.19457916,9.727e-05,2]
[360911126,1747140902966,-709.19457916,9.727e-05,2]
[360911127,1747140902999,-709.19457916,9.727e-05,2]
[360911128,1747140903030,-709.19457916,9.727e-05,2]
[360911129,1747140903071,-709.19457916,9.727e-05,2]
[360911130,1747140903109,-709.19457916,9.727e-05,2]
[360911131,1747140903137,-400.0,0.00010997,2]
[360911132,1747140903164,-212.95365834,0.00010997,2]
[360911133,1747140903191,-400.0,0.00010999,2]
[360911134,1747140903219,-581210.69436266,0.00011,2]
[360911135,1747141160393,151.0,0.00028,120]
[360911136,1747141181834,1111.0,0.0002,30]